bitfinex-derivatives/quotes_BTCF0:USTF0_20210108
["timestamp","ask_amount","ask_price","bid_price","bid_amount"]
[1610075966386,0.13632608,37904.0,37902.0,0.02086652]
[1610075966788,0.13632608,37904.0,37897.0,0.12398]
[1610075966988,0.13632608,37904.0,37903.0,0.02086719]
[1610075967187,0.13632608,37904.0,37898.0,0.02086822]
[1610075967387,3.3947,37915.0,37898.0,0.02086822]
[1610075967388,0.13632608,37899.0,37898.0,0.02086822]
[1610075967587,0.13632608,37899.0,37897.0,0.12398]
[1610075967788,0.13632608,37899.0,37898.0,0.02086779]
[1610075968592,4.47042608,37899.0,37898.0,0.02086779]
[1610075969790,0.13632608,37899.0,37898.0,0.02086779]
[1610075970992,0.09928,37919.0,37898.0,0.02086779]
[1610075971196,3.0924,37921.0,37898.0,0.02086779]
[1610075971393,0.08629,37927.0,37908.0,0.13632608]
[1610075971592,0.1569,37943.0,37908.0,0.22171608]
[1610075971992,0.1569,37943.0,37909.0,0.02086288]
[1610075973293,0.1569,37943.0,37917.0,0.13632608]
[1610075973896,0.1569,37943.0,37918.0,0.02085992]
[1610075975393,0.1569,37943.0,37933.0,0.13632608]
[1610075975994,0.1569,37943.0,37934.0,0.02085732]
[1610075976397,3.3234,37940.0,37931.0,0.02085744]
[1610075976798,3.3234,37940.0,37935.0,0.02085781]
[1610075976997,3.3234,37940.0,37932.0,0.02085864]
[1610075977198,3.3234,37940.0,37936.0,0.0208591]
[1610075977398,0.13632608,37937.0,37936.0,0.00026997]
[1610075977597,0.13632608,37937.0,37933.0,0.02085965]
[1610075977799,0.13632608,37937.0,37916.0,0.12136]
[1610075977800,0.13632608,37937.0,37936.0,0.00026999]
[1610075978000,0.13632608,37937.0,37934.0,0.02086058]
[1610075978199,0.13632608,37937.0,37936.0,0.00027001]
[1610075978499,0.13632608,37937.0,37918.0,0.02059125]
[1610075978500,0.13632608,37937.0,37917.0,0.02086149]
[1610075978904,0.13632608,37937.0,37936.0,0.00027001]
[1610075979101,0.13632608,37937.0,37918.0,0.02086134]
[1610075979302,3.43192,37940.0,37936.0,0.00027001]
[1610075979501,3.43192,37940.0,37920.0,0.02059137]
[1610075979703,3.43192,37940.0,37924.0,0.12655]
[1610075980101,0.10852,37940.0,37925.0,0.02085949]
[1610075980302,0.1569,37943.0,37925.0,0.02085949]
[1610075981301,0.13632608,37926.0,37925.0,0.02085949]
[1610075983203,3.8642,37923.0,37917.0,0.02086343]
[1610075983405,0.13632608,37918.0,37917.0,0.02086343]
[1610075983606,0.13632608,37918.0,37916.0,0.12136]
[1610075983804,0.13632608,37918.0,37897.0,0.12398]
[1610075983805,0.13632608,37918.0,37917.0,0.02086454]
[1610075984404,0.13632608,37918.0,37917.0,0.00027005]
[1610075984605,0.13632608,37918.0,37917.0,0.02086426]
[1610075984805,0.13632608,37918.0,37909.0,0.02059388]
[1610075985004,0.13632608,37918.0,37917.0,0.02086392]
[1610075985304,0.13632608,37918.0,37917.0,0.13017]
[1610075985707,0.13632608,37918.0,37917.0,0.15103198]
[1610075986913,3.83232608,37918.0,37917.0,0.15103198]
[1610075988610,3.83232608,37918.0,37917.0,0.13017]
[1610075988810,3.83232608,37918.0,37917.0,0.15103581]
[1610075989111,0.13632608,37918.0,37917.0,0.15103581]
[1610075991416,0.13632608,37918.0,37917.0,0.28736189]
[1610075991617,0.12517,37940.0,37917.0,3.88766189]
[1610075991820,0.3195,37948.0,37917.0,3.88766189]
[1610075992217,0.3195,37948.0,37918.0,0.13537321]
[1610075993417,0.13632608,37919.0,37918.0,0.13537321]
[1610075993818,0.13632608,37919.0,37918.0,0.01886015]
[1610075996523,0.58762608,37919.0,37918.0,0.01886015]
[1610075996724,0.58762608,37919.0,37909.0,0.0188671]
[1610075996926,0.58762608,37919.0,37918.0,0.01887016]
[1610075997123,0.58762608,37919.0,37910.0,0.0188684]
[1610075997323,0.13632608,37911.0,37910.0,0.0188684]
[1610075997523,0.13632608,37911.0,37896.0,0.13632608]
[1610075997723,0.13632608,37911.0,37910.0,0.0188687]
[1610075997923,0.13632608,37911.0,37898.0,0.0188689]
[1610075998323,0.13632608,37911.0,37910.0,0.01886874]
[1610075998525,0.13632608,37911.0,37899.0,0.01886901]
[1610075998724,0.13632608,37911.0,37910.0,0.01886867]
[1610075999024,0.13632608,37911.0,37900.0,0.01886889]
[1610075999223,0.13632608,37911.0,37910.0,0.01886839]
[1610075999625,0.13632608,37911.0,37901.0,0.15519463]
[1610075999825,0.13632608,37911.0,37910.0,0.01886815]
[1610076000027,0.13632608,37911.0,37902.0,0.01886761]
[1610076000424,0.13632608,37911.0,37910.0,0.01886814]
[1610076000625,0.13632608,37911.0,37903.0,0.01886819]
[1610076000824,0.13632608,37911.0,37910.0,0.01886814]
[1610076001124,0.13632608,37911.0,37892.0,0.1165318]
[1610076001125,0.13632608,37911.0,37904.0,0.01887061]
[1610076001325,0.13632608,37911.0,37910.0,0.01886857]
[1610076001524,0.4513,37919.0,37910.0,0.01886857]
[1610076001724,0.4513,37919.0,37907.0,0.10484]
[1610076001924,0.1569,37929.0,37911.0,0.01886885]
[1610076002128,0.1569,37929.0,37908.0,0.01886769]
[1610076002525,0.1569,37929.0,37907.0,0.10484]
[1610076002726,0.1569,37929.0,37909.0,0.01886746]
[1610076002928,0.1569,37929.0,37908.0,0.01886616]
[1610076003226,0.1569,37929.0,37910.0,0.01886582]
[1610076003428,0.13632608,37911.0,37910.0,0.13632608]
[1610076003628,0.1569,37929.0,37910.0,0.13632608]
[1610076003828,0.1569,37929.0,37910.0,0.15519088]
[1610076004128,0.1569,37929.0,37911.0,0.01886449]
[1610076005430,0.13632608,37912.0,37911.0,0.01886449]
[1610076007536,0.13632608,37912.0,37908.0,0.01886385]
[1610076007734,0.13632608,37912.0,37911.0,0.01886482]
[1610076007934,0.13632608,37912.0,37909.0,0.0188656]
[1610076008136,0.13632608,37912.0,37911.0,0.00026622]
[1610076008335,0.13632608,37912.0,37911.0,0.01886588]
[1610076008535,0.13632608,37912.0,37908.0,0.0188665]
[1610076008735,0.13632608,37912.0,37911.0,0.0188669]
[1610076009037,0.13632608,37912.0,37909.0,0.01886713]
[1610076009235,0.13632608,37912.0,37911.0,0.01886767]
[1610076009635,0.13632608,37912.0,37910.0,0.01886735]
[1610076009837,0.13632608,37912.0,37911.0,0.0188674]
[1610076010235,0.13632608,37912.0,37911.0,0.01860114]
[1610076010435,0.13632608,37912.0,37898.0,0.01886792]
[1610076010635,0.13632608,37912.0,37911.0,0.01886805]
[1610076010836,0.13632608,37912.0,37899.0,0.01886864]
[1610076011036,0.13632608,37912.0,37911.0,0.01886851]
[1610076011435,0.13632608,37912.0,37898.0,0.01886874]
[1610076011636,0.13632608,37912.0,37911.0,0.01886919]
[1610076011835,0.13632608,37912.0,37899.0,0.01886955]
[1610076012235,0.13632608,37912.0,37911.0,0.01886951]
[1610076012437,0.13632608,37912.0,37900.0,0.01886965]
[1610076012635,0.13632608,37912.0,37911.0,0.01860359]
[1610076012835,0.13632608,37912.0,37911.0,0.01886987]
[1610076013035,0.13632608,37912.0,37901.0,0.01860403]
[1610076013236,0.13632608,37912.0,37911.0,0.01860409]
[1610076013435,0.13632608,37912.0,37902.0,0.01887043]
[1610076013636,0.13632608,37903.0,37902.0,0.01887043]
[1610076013836,0.13632608,37903.0,37887.0,0.13632608]
[1610076014038,0.13632608,37903.0,37902.0,0.01886623]
[1610076014238,0.13632608,37903.0,37898.0,0.01886599]
[1610076014438,0.13632608,37903.0,37902.0,0.01886595]
[1610076014839,0.13632608,37903.0,37898.0,0.0188666]
[1610076015039,0.13632608,37903.0,37902.0,0.01886651]
[1610076015238,0.13632608,37903.0,37902.0,0.01860022]
[1610076015438,0.13632608,37903.0,37899.0,0.00026633]
[1610076015439,0.13632608,37903.0,37899.0,0.01886916]
[1610076015640,0.13632608,37903.0,37902.0,0.01886861]
[1610076015840,0.13632608,37903.0,37900.0,0.01886869]
[1610076016042,0.13632608,37903.0,37902.0,0.01886899]
[1610076016442,0.13632608,37903.0,37901.0,0.01886877]
[1610076016644,0.13632608,37903.0,37902.0,0.01886961]
[1610076017246,0.13632608,37903.0,37898.0,0.01887035]
[1610076017447,0.13632608,37903.0,37902.0,0.01887055]
[1610076017647,0.13632608,37903.0,37899.0,0.01887061]
[1610076018047,4.21782608,37903.0,37902.0,0.01887096]
[1610076018246,4.21782608,37903.0,37900.0,0.01887083]
[1610076018448,4.21782608,37903.0,37902.0,0.01887078]
[1610076018646,4.21782608,37903.0,37901.0,0.01860435]
[1610076018846,4.21782608,37903.0,37889.0,0.12407]
[1610076019046,4.21782608,37903.0,37902.0,0.01887081]
[1610076019249,4.21782608,37903.0,37890.0,0.01887081]
[1610076019446,4.21782608,37903.0,37902.0,0.0188706]
[1610076019847,4.21782608,37903.0,37890.0,0.01887107]
[1610076020047,4.21782608,37903.0,37902.0,0.01887134]
[1610076020249,4.33828608,37903.0,37891.0,0.01887179]
[1610076020647,4.33828608,37903.0,37882.0,0.0188717]
[1610076020847,4.33828608,37903.0,37892.0,0.01886824]
[1610076021048,4.33828608,37903.0,37883.0,0.01886831]
[1610076021049,0.25678608,37903.0,37883.0,0.01886831]
[1610076021251,3.4209,37893.0,37883.0,0.01886831]
[1610076021449,3.4209,37893.0,37881.0,0.08338]
[1610076021650,0.13632608,37882.0,37881.0,0.08338]
[1610076021849,0.59082608,37882.0,37881.0,0.08338]
[1610076022250,0.59082608,37882.0,37881.0,0.10225477]
[1610076023551,0.59082608,37882.0,37849.0,0.11663136]
[1610076023750,0.59082608,37882.0,37848.0,0.11663162]
[1610076023951,0.13632608,37882.0,37850.0,0.01887821]
[1610076024351,3.9402,37853.0,37847.0,0.13554368]
[1610076024552,3.9402,37853.0,37851.0,0.01888185]
[1610076024751,0.13632608,37882.0,37848.0,0.01888198]
[1610076024953,3.6212,37850.0,37848.0,0.01888198]
[1610076025153,1.5,37881.0,37847.0,0.09138]
[1610076025354,1.58672,37881.0,37849.0,0.01888346]
[1610076025554,1.58672,37881.0,37847.0,0.09138]
[1610076025555,0.13632608,37850.0,37848.0,0.0188848]
[1610076025955,0.13632608,37850.0,37847.0,0.09138]
[1610076026155,0.13632608,37850.0,37849.0,0.01888691]
[1610076026354,4.47312608,37850.0,37848.0,0.01888916]
[1610076026555,0.13632608,37850.0,37849.0,0.01889177]
[1610076026956,0.13632608,37850.0,37849.0,0.01889497]
[1610076027154,0.13632608,37850.0,37840.0,0.01889605]
[1610076027358,0.13632608,37850.0,37849.0,0.01889514]
[1610076027554,4.17022608,37850.0,37849.0,0.01889514]
[1610076027757,4.17022608,37850.0,37840.0,0.01889471]
[1610076027955,4.17022608,37850.0,37849.0,0.01889479]
[1610076028159,4.17022608,37850.0,37841.0,0.01889581]
[1610076028456,4.17022608,37850.0,37849.0,0.0188955]
[1610076028856,4.17022608,37850.0,37842.0,0.01889577]
[1610076029056,4.17022608,37850.0,37849.0,0.01889574]
[1610076029258,4.17022608,37850.0,37843.0,0.01889578]
[1610076029459,4.17022608,37850.0,37849.0,0.01889587]
[1610076029861,4.17022608,37850.0,37844.0,0.00026673]
[1610076030057,4.17022608,37850.0,37823.0,0.13489]
[1610076030258,4.17022608,37850.0,37845.0,0.00026673]
[1610076030661,4.17022608,37850.0,37824.0,0.01889642]
[1610076030860,4.17022608,37850.0,37815.0,0.12612]
[1610076031061,4.17022608,37850.0,37825.0,0.01889665]
[1610076031262,4.17022608,37850.0,37825.0,0.10751665]
[1610076031461,0.13632608,37850.0,37825.0,0.08862]
[1610076031661,0.12606,37851.0,37826.0,0.01889609]
[1610076032262,0.09318,37861.0,37826.0,0.01889609]
[1610076032462,3.4745,37865.0,37826.0,0.01889609]
[1610076033564,0.13632608,37827.0,37826.0,0.01889609]
[1610076034764,0.13632608,37827.0,37826.0,0.00026674]
[1610076034965,0.56502608,37827.0,37826.0,0.01889652]
[1610076036865,0.56502608,37827.0,37815.0,0.12612]
[1610076037065,0.13632608,37827.0,37815.0,0.12612]
[1610076037266,3.7272,37822.0,37800.0,0.04417986]
[1610076037465,3.7272,37822.0,37816.0,0.01890066]
[1610076037665,3.7272,37822.0,37784.0,3.829]
[1610076037666,0.13632608,37817.0,37801.0,0.0189018]
[1610076037865,0.13632608,37817.0,37785.0,0.11679468]
[1610076038269,3.4856,37814.0,37802.0,0.01890162]
[1610076038466,3.4856,37814.0,37782.0,0.01890265]
[1610076038669,3.4856,37814.0,37803.0,0.01890322]
[1610076039067,3.4856,37814.0,37798.0,0.09053]
[1610076039267,3.4856,37814.0,37804.0,0.01890283]
[1610076039467,3.4856,37814.0,37799.0,0.01890354]
[1610076039668,3.4856,37814.0,37799.0,0.15522962]
[1610076039871,3.4856,37814.0,37805.0,0.01890377]
[1610076040069,3.4856,37814.0,37800.0,0.01890316]
[1610076040267,3.4856,37814.0,37806.0,0.01890241]
[1610076040467,3.4856,37814.0,37806.0,0.15534241]
[1610076040667,3.4856,37814.0,37806.0,0.13644]
[1610076040868,3.4856,37814.0,37807.0,0.01890152]
[1610076041668,0.13632608,37808.0,37807.0,0.01890152]
[1610076042472,3.63042608,37808.0,37807.0,0.01890152]
[1610076042872,3.63042608,37808.0,37807.0,0.01890546]
[1610076044776,3.63042608,37808.0,37798.0,0.09053]
[1610076044976,3.63042608,37808.0,37772.0,0.11681821]
[1610076045275,3.63042608,37808.0,37799.0,0.01890962]
[1610076045675,0.13632608,37800.0,37798.0,0.12133]
[1610076046077,0.13632608,37800.0,37799.0,0.01891028]
[1610076050884,0.13632608,37800.0,37799.0,0.01890707]
[1610076051686,0.13632608,37800.0,37799.0,0.15523315]
[1610076052887,3.6801,37826.0,37799.0,0.15523315]
[1610076053489,3.6801,37826.0,37800.0,0.01919711]
[1610076053690,0.13632608,37813.0,37812.0,0.13632608]
[1610076054090,0.57807,37850.0,37812.0,0.13632608]
[1610076054291,0.57807,37850.0,37812.0,0.27726048]
[1610076054490,0.57807,37850.0,37813.0,0.01919325]
[1610076055693,0.13632608,37814.0,37813.0,0.01919325]
[1610076058092,3.6993,37841.0,37813.0,0.01919325]
[1610076059692,0.13632608,37820.0,37816.0,0.13632608]
[1610076060092,0.57807,37850.0,37817.0,0.01920659]
[1610076060295,0.4764,37850.0,37817.0,0.01920659]
[1610076060493,0.3195,37850.0,37817.0,0.01920659]
[1610076060894,0.3195,37850.0,37817.0,0.13678762]
[1610076061495,0.1569,37872.0,37829.0,4.278]
[1610076061697,0.13632608,37856.0,37851.0,0.13632608]
[1610076062095,0.13632608,37856.0,37852.0,0.01919943]
[1610076062497,0.13632608,37856.0,37852.0,0.12600943]
[1610076062697,0.1569,37872.0,37852.0,0.12600943]
[1610076062897,0.10834,37876.0,37853.0,0.01920087]
[1610076063799,0.13632608,37857.0,37856.0,0.13632608]
[1610076064199,0.13632608,37857.0,37856.0,0.15552549]
[1610076065299,0.13632608,37857.0,37856.0,0.01919941]
[1610076065900,0.10834,37876.0,37855.0,0.13632608]
[1610076066102,0.3195,37885.0,37856.0,0.01919684]
[1610076066600,3.5485,37889.0,37856.0,0.01919684]
[1610076067703,3.5485,37889.0,37881.0,0.13632608]
[1610076067904,0.1569,37891.0,37881.0,0.13632608]
[1610076068105,0.1569,37891.0,37882.0,0.01918956]
[1610076069106,0.1569,37913.0,37882.0,0.01918956]
[1610076069710,0.13632608,37901.0,37900.0,0.13632608]
[1610076070109,0.1569,37913.0,37900.0,0.13632608]
[1610076070310,0.1569,37913.0,37900.0,0.24912824]
[1610076070510,0.1569,37913.0,37901.0,0.01918086]
[1610076071709,0.1569,37913.0,37912.0,0.13632608]
[1610076071911,0.13632608,37918.0,37912.0,0.25475608]
[1610076072110,0.13632608,37918.0,37912.0,0.27393389]
[1610076072311,0.13632608,37918.0,37913.0,0.01917789]
[1610076073312,0.13632608,37918.0,37913.0,0.00026699]
[1610076073514,0.13632608,37918.0,37900.0,0.09362]
[1610076073713,0.11332,37918.0,37901.0,0.01891354]
[1610076073913,0.11332,37918.0,37901.0,0.01918059]
[1610076074114,0.12923156,37918.0,37901.0,0.01918059]
[1610076074914,0.48895031,37916.0,37901.0,0.01918059]
[1610076075316,0.68092479,37918.0,37892.0,0.10519]
[1610076075317,0.01592164,37912.0,37893.0,0.01918482]
[1610076075515,0.01592164,37912.0,37892.0,0.10519]
[1610076075516,3.9361,37911.0,37902.0,0.00026709]
[1610076075718,0.13632608,37903.0,37894.0,0.01918576]
[1610076076116,0.13632608,37903.0,37893.0,0.01892035]
[1610076076318,0.13632608,37903.0,37865.0,0.04452863]
[1610076076518,0.13632608,37903.0,37881.0,0.01918853]
[1610076076717,0.13632608,37903.0,37865.0,0.04452863]
[1610076076718,0.01594299,37901.0,37865.0,0.06371708]
[1610076077519,0.47371205,37902.0,37865.0,0.06371708]
[1610076077520,0.01595158,37897.0,37865.0,0.06371708]
[1610076077717,0.01595158,37897.0,37871.0,0.13632608]
[1610076077918,0.01595309,37896.0,37871.0,0.13632608]
[1610076078117,0.01595309,37896.0,37872.0,0.01919002]
[1610076078318,0.4899796,37900.0,37872.0,0.10544002]
[1610076078717,0.56215946,37903.0,37872.0,0.10544002]
[1610076078917,0.56215946,37903.0,37873.0,0.01918852]
[1610076079118,0.5462,37903.0,37873.0,0.01918852]
[1610076079718,0.5462,37903.0,37902.0,0.13632608]
[1610076079917,0.13632608,37904.0,37902.0,0.13632608]
[1610076080117,0.13632608,37904.0,37902.0,0.13659318]
[1610076080317,0.01596326,37912.0,37902.0,0.15551147]
[1610076080518,0.1569,37913.0,37903.0,0.01918407]
[1610076081119,0.1569,37913.0,37903.0,0.01891699]
[1610076081318,0.1569,37913.0,37904.0,0.00026703]
[1610076081518,0.1569,37913.0,37904.0,0.0191809]
[1610076081718,0.13632608,37905.0,37902.0,0.01918121]
[1610076082724,0.13632608,37905.0,37893.0,0.12628]
[1610076083125,0.13632608,37905.0,37894.0,0.01891419]
[1610076083725,0.13632608,37895.0,37894.0,0.01891419]
[1610076084525,0.13632608,37895.0,37875.0,0.11771359]
[1610076084726,0.13632608,37895.0,37894.0,0.01918374]
[1610076084927,0.13632608,37895.0,37876.0,0.0191856]
[1610076085125,0.13632608,37895.0,37894.0,0.01918715]
[1610076085526,4.06592608,37895.0,37873.0,0.01918755]
[1610076085727,4.06592608,37895.0,37894.0,0.01918732]
[1610076085728,4.40060463,37895.0,37894.0,0.01918732]
[1610076085927,3.9296,37895.0,37874.0,0.01918819]
[1610076086326,3.9296,37895.0,37866.0,0.06371945]
[1610076086527,0.0158496,37887.0,37875.0,0.01918902]
[1610076086727,0.568,37885.0,37875.0,0.01892186]
[1610076086927,0.568,37885.0,37867.0,0.01919002]
[1610076086928,0.01583834,37885.0,37867.0,0.01919002]
[1610076087129,3.8729,37883.0,37876.0,0.01919052]
[1610076087327,3.8729,37883.0,37866.0,0.04453062]
[1610076087328,3.88869884,37883.0,37868.0,0.01918977]
[1610076087529,0.01579884,37883.0,37840.0,0.11750938]
[1610076087728,0.13632608,37853.0,37840.0,0.11750938]
[1610076088127,0.13632608,37853.0,37831.0,0.13632608]
[1610076088128,0.13632608,37853.0,37852.0,0.01919125]
[1610076088330,0.13632608,37853.0,37847.0,0.12015]
[1610076089427,0.13632608,37853.0,37848.0,0.01892419]
[1610076089829,0.13632608,37849.0,37848.0,0.01892419]
[1610076092931,0.13632608,37849.0,37847.0,0.12015]
[1610076093131,0.13632608,37849.0,37848.0,0.01919292]
[1610076093832,0.13632608,37849.0,37847.0,0.12015]
[1610076094232,0.13632608,37849.0,37848.0,0.01919148]
[1610076096337,3.98602608,37849.0,37840.0,0.01919288]
[1610076096538,3.98602608,37849.0,37848.0,0.01919327]
[1610076096737,3.98602608,37849.0,37841.0,0.01919422]
[1610076097139,3.98602608,37849.0,37848.0,0.01919438]
[1610076097339,3.98602608,37849.0,37842.0,0.01919514]
[1610076097538,0.13632608,37849.0,37848.0,0.01919612]
[1610076097739,0.13632608,37849.0,37843.0,0.01919605]
[1610076098040,0.13632608,37849.0,37840.0,0.01919635]
[1610076098439,0.13632608,37849.0,37844.0,0.01919377]
[1610076098639,0.13632608,37849.0,37841.0,0.01919333]
[1610076098837,0.13632608,37849.0,37845.0,0.01919277]
[1610076099039,0.13632608,37849.0,37842.0,0.01919297]
[1610076099342,0.13632608,37849.0,37840.0,0.01919281]
[1610076099740,0.1569,37861.0,37844.0,0.13632608]
[1610076100140,0.1569,37861.0,37845.0,0.01919225]
[1610076100743,0.1569,37861.0,37840.0,0.01919239]
[1610076100944,0.1569,37861.0,37846.0,0.01919286]
[1610076101142,0.1569,37861.0,37841.0,0.01919337]
[1610076101542,0.1569,37861.0,37840.0,0.01919351]
[1610076101745,0.1569,37861.0,37842.0,0.01919374]
[1610076101944,0.1569,37861.0,37841.0,0.01919356]
[1610076102346,0.1569,37861.0,37840.0,0.01919358]
[1610076102546,0.1569,37861.0,37842.0,0.01919365]
[1610076102745,0.1569,37861.0,37841.0,0.0191936]
[1610076103151,0.1569,37861.0,37843.0,0.01919365]
[1610076103350,0.1569,37861.0,37842.0,0.01919363]
[1610076103550,0.1569,37861.0,37844.0,0.01919397]
[1610076103750,0.13632608,37845.0,37844.0,0.01919397]
[1610076103953,0.13632608,37845.0,37843.0,0.01919411]
[1610076104151,0.13632608,37845.0,37844.0,0.01919427]
[1610076104551,0.13632608,37845.0,37840.0,0.01919427]
[1610076105753,0.13632608,37841.0,37840.0,0.01919427]
[1610076111858,0.13632608,37841.0,37840.0,0.15552035]
[1610076112962,0.1569,37861.0,37840.0,0.15552035]
[1610076113362,0.1569,37861.0,37841.0,0.01715826]
[1610076113963,0.1569,37861.0,37860.0,0.13632608]
[1610076114163,0.1569,37861.0,37860.0,0.23377608]
[1610076114364,0.1569,37861.0,37860.0,0.25093253]
[1610076114563,0.13632608,37862.0,37860.0,0.25093253]
[1610076114765,0.3195,37885.0,37860.0,0.25093253]
[1610076115165,0.3195,37885.0,37861.0,0.01715424]
[1610076115967,0.3195,37885.0,37875.0,0.13632608]
[1610076116366,0.3195,37885.0,37876.0,0.01717345]
[1610076117967,0.13632608,37877.0,37876.0,0.01717345]
[1610076121971,0.13632608,37877.0,37876.0,0.15349953]
[1610076122272,0.3195,37885.0,37876.0,0.15349953]
[1610076122774,0.3195,37885.0,37877.0,0.01717339]
[1610076123978,0.3195,37885.0,37884.0,0.13632608]
[1610076124176,0.3195,37885.0,37884.0,0.22619608]
[1610076124377,0.3195,37885.0,37884.0,0.24336856]
[1610076125378,0.1569,37904.0,37884.0,0.24336856]
[1610076125776,0.1569,37904.0,37885.0,0.01690692]
[1610076125975,0.1569,37904.0,37903.0,0.13632608]
[1610076126176,0.13632608,37909.0,37903.0,0.13632608]
[1610076126177,0.13632608,37909.0,37903.0,0.24545608]
[1610076126377,0.13632608,37909.0,37903.0,0.26262565]
[1610076126579,0.13632608,37909.0,37904.0,0.01716834]
[1610076128079,0.13632608,37905.0,37904.0,0.01716834]
[1610076135292,0.13632608,37905.0,37886.0,0.12946417]
[1610076135491,0.13632608,37905.0,37904.0,0.01717422]
[1610076135891,0.13632608,37905.0,37895.0,0.10045]
[1610076136091,0.13632608,37896.0,37895.0,0.10045]
[1610076136695,0.13632608,37896.0,37895.0,0.11762438]
[1610076140299,0.13632608,37896.0,37895.0,0.01717438]
[1610076140899,0.13632608,37896.0,37885.0,0.01717701]
[1610076141099,0.13632608,37896.0,37884.0,0.08987]
[1610076141299,0.13632608,37896.0,37886.0,0.01717719]
[1610076141901,0.13632608,37896.0,37887.0,0.01717709]
[1610076142103,0.13632608,37888.0,37887.0,0.01717709]
[1610076146208,0.1569,37904.0,37887.0,0.01717709]
[1610076148010,0.1569,37904.0,37903.0,0.13632608]
[1610076148411,0.1569,37904.0,37903.0,0.25308068]
[1610076148612,0.3195,37921.0,37903.0,0.25308068]
[1610076149012,0.3195,37921.0,37903.0,0.1167546]
[1610076149212,0.3195,37921.0,37904.0,0.01717465]
[1610076150114,0.13632608,37905.0,37904.0,0.01717465]
[1610076151215,4.114,37904.0,37886.0,0.01717719]
[1610076151816,0.13632608,37905.0,37887.0,0.01717648]
[1610076152019,0.13632608,37888.0,37887.0,0.01717648]
[1610076152220,3.83912608,37888.0,37887.0,0.01717648]
[1610076152819,3.95449608,37888.0,37852.0,0.11233167]
[1610076153020,0.1569,37887.0,37852.0,0.11233167]
[1610076153221,4.1555,37867.0,37852.0,0.11233167]
[1610076153420,4.1555,37867.0,37832.0,4.4227]
[1610076153620,4.1555,37867.0,37853.0,0.01718246]
[1610076153820,4.1555,37867.0,37853.0,0.13989246]
[1610076154022,0.13632608,37854.0,37853.0,0.12271]
[1610076154221,0.68852608,37854.0,37853.0,0.12271]
[1610076154422,0.68852608,37854.0,37853.0,0.13989373]
[1610076156023,0.68852608,37854.0,37829.0,0.13632608]
[1610076156225,0.13632608,37854.0,37819.0,0.11236801]
[1610076156425,3.8616,37832.0,37819.0,0.11236801]
[1610076156626,3.8616,37832.0,37830.0,0.12588844]
[1610076156824,3.8616,37832.0,37830.0,0.1087]
[1610076157025,3.8616,37832.0,37831.0,0.01718962]
[1610076157427,0.13632608,37854.0,37831.0,0.01718962]
[1610076157626,4.25082608,37854.0,37831.0,0.01718962]
[1610076158026,0.13632608,37832.0,37831.0,0.01718962]
[1610076158928,4.1145,37854.0,37831.0,0.01718962]
[1610076159127,0.2824,37871.0,37830.0,0.1087]
[1610076159527,0.2824,37871.0,37832.0,0.0171884]
[1610076159727,0.2824,37871.0,37831.0,0.01718705]
[1610076159929,0.2824,37871.0,37833.0,0.01718629]
[1610076160127,0.2824,37871.0,37851.0,0.13632608]
[1610076160328,0.12782,37872.0,37851.0,0.24805608]
[1610076160529,0.12782,37872.0,37852.0,0.01718579]
[1610076160728,3.6163,37876.0,37852.0,0.01718579]
[1610076161730,1.5,37872.0,37852.0,0.01718579]
[1610076161930,3.5528,37855.0,37852.0,0.01718579]
[1610076162129,0.13632608,37853.0,37852.0,0.01718579]
[1610076162330,0.13632608,37853.0,37839.0,0.01718689]
[1610076162532,0.13632608,37853.0,37852.0,0.01718747]
[1610076162732,0.59782608,37853.0,37852.0,0.01718747]
[1610076162931,0.59782608,37853.0,37840.0,0.01718775]
[1610076163131,0.59782608,37853.0,37838.0,0.13238]
[1610076163531,0.59782608,37853.0,37839.0,0.01718957]
[1610076164033,0.13632608,37840.0,37839.0,0.01718957]
[1610076164232,0.13632608,37840.0,37831.0,0.01719029]
[1610076164433,0.13632608,37840.0,37839.0,0.01719055]
[1610076164633,0.13632608,37840.0,37832.0,0.01719018]
[1610076164833,0.13632608,37840.0,37839.0,0.01719025]
[1610076165233,0.13632608,37840.0,37831.0,0.01719049]
[1610076165434,0.13632608,37840.0,37839.0,0.01719009]
[1610076165632,0.13632608,37840.0,37832.0,0.01719027]
[1610076166034,0.13632608,37833.0,37831.0,0.0171904]
[1610076166234,0.13632608,37833.0,37830.0,0.1087]
[1610076166434,0.13632608,37833.0,37832.0,0.01719063]
[1610076166836,0.13632608,37833.0,37831.0,0.0171901]
[1610076167035,0.13632608,37833.0,37832.0,0.01718978]
[1610076170441,0.13632608,37833.0,37824.0,0.0171908]
[1610076170641,0.13632608,37833.0,37832.0,0.01719118]
[1610076171042,0.13632608,37833.0,37825.0,0.0171911]
[1610076171242,0.13632608,37833.0,37823.0,0.10196]
[1610076171443,0.13632608,37833.0,37826.0,0.01719077]
[1610076171843,0.13632608,37833.0,37824.0,0.01719097]
[1610076172043,0.13632608,37833.0,37827.0,0.01719085]
[1610076172242,0.13632608,37828.0,37825.0,0.017191]
[1610076172444,0.13632608,37828.0,37823.0,0.10196]
[1610076172747,0.13632608,37828.0,37824.0,0.01719089]
[1610076174546,0.13632608,37828.0,37800.0,0.11283229]
[1610076174749,4.1355,37817.0,37814.0,0.13452]
[1610076175148,4.1355,37817.0,37815.0,0.01735621]
[1610076175949,4.1355,37817.0,37807.0,0.01736018]
[1610076176148,4.26001,37817.0,37816.0,0.0173612]
[1610076176548,4.26001,37817.0,37808.0,0.01736156]
[1610076176748,4.26001,37817.0,37816.0,0.01736154]
[1610076176948,4.26001,37817.0,37809.0,0.0173615]
[1610076177348,0.12451,37817.0,37816.0,0.0173614]
[1610076177549,0.12451,37817.0,37810.0,0.01736164]
[1610076177749,0.11035,37831.0,37816.0,0.01736142]
[1610076178150,0.11035,37831.0,37811.0,0.01736068]
[1610076178349,4.2506,37837.0,37809.0,0.08292]
[1610076178553,4.2506,37837.0,37812.0,0.01735885]
[1610076178753,4.2506,37837.0,37810.0,0.01735811]
[1610076180253,0.13632608,37823.0,37817.0,0.13632608]
[1610076180652,0.13632608,37823.0,37818.0,0.01735656]
[1610076180852,0.13632608,37823.0,37818.0,0.15463656]
[1610076181253,0.13632608,37823.0,37819.0,0.01735648]
[1610076183255,0.13632608,37823.0,37818.0,0.13728]
[1610076183657,0.13632608,37823.0,37820.0,0.01735777]
[1610076183856,0.13632608,37823.0,37819.0,0.01735785]
[1610076184057,0.13632608,37823.0,37821.0,0.01735792]
[1610076184257,0.13632608,37823.0,37821.0,0.01709395]
[1610076184456,0.13632608,37823.0,37820.0,0.01735808]
[1610076184656,0.13632608,37823.0,37822.0,0.00026397]
[1610076184857,0.13632608,37823.0,37821.0,0.00026397]
[1610076185058,0.13632608,37823.0,37818.0,0.13728]
[1610076185059,0.13632608,37823.0,37822.0,0.00026397]
[1610076185460,0.13632608,37823.0,37819.0,0.01735832]